Cogmind - Beta 15 @@@ ROGUE MODE // 2025.05.25 @ 10:55:26 Player: KN-OKO Result: Core destroyed Performance ------------- Evolutions (7) 3500 Regions Visited (10) 2000 Robots Destroyed (154) 770 Value Destroyed (8134) 8134 Prototype IDs (27) 540 Alien Tech Used (1) 200 Bonus (2374) 2374 TOTAL SCORE: 17518 Bonus ------- High Alert Combat Kills 1146 Follower Combat Kills 128 Registered with UFD 300 Met Optimus in HQ 500 Met Zhirov 300 Cogmind --------- Core Integrity 0/1300 Matter 295/300 Energy 100/100 System Corruption 19% Temperature Critical (584) Movement Rolling (100) Location -3/Research Parts ------- > --- POWER (2) -------- (None) > --- PROPULSION (6) --- Advanced VSS Leg Armored Huge Wheel > --- UTILITY (10) ----- Large Storage Unit Advanced Targeting Computer Improved Weapon Cycler > --- WEAPON (3) ------- Dispersion Rifle > --- INVENTORY (15) --- Light Particle Reactor Advanced Heat Sink High-capacity Matter Pod (200) Transdimensional Reconstructor Long-range Missile Launcher Vortex Trap Peak State ------------ > --- POWER ------------ Antimatter Reactor Light Particle Reactor > --- PROPULSION ------- Flexi-carbon Leg Enhanced Armored Leg Myomer Leg Myomer Leg Myomer Leg Myomer Leg > --- UTILITY ---------- Advanced Heat Sink Advanced Coolant Injector Advanced Coolant Injector Large Storage Unit Advanced Energy Well Improved Weapon Cycler Reaction Control System Improved Phase Shifter Improved Medium Armor Plating Experimental Shield Generator > --- WEAPON ----------- Heavy Wave Gun KE Penetrator Railgun > --- INVENTORY -------- Armored Huge Wheel High-capacity Matter Pod Long-range Tractor Beam Transdimensional Reconstructor Dispersion Rifle Quantum Rifle Matter Neutralizer Coil Gun Heavy Machine Gun Improved KE Penetrator Long-range Missile Launcher Vortex Trap Vortex Trap [Rating: 140] Favorites ----------- Power Enhanced Fission Core Engine Ion Engine Power Core Enhanced Fission Core Reactor Light Antimatter Reactor Propulsion Flexi-carbon Leg Treads Light Treads Leg Flexi-carbon Leg Wheel Armored Huge Wheel Utility Large Storage Unit Device Improved Weapon Cycler Storage Large Storage Unit Processor Improved Target Analyzer Protection Improved Medium Armor Plating Weapon Improved KE Penetrator Energy Gun Wave Gun Energy Cannon Heavy Phase Cannon Ballistic Gun Improved KE Penetrator Launcher Long-range Missile Launcher Special Weapon Junk Cannon Build | -11 -10 -10 -7 -5 -5 -5 -5 -4 -4 -3 ------- Run | Yrd Mat Sub Scr Fac Upp Upp Zhi Pro Fac Res Slots Evolved 14 | . . . . 10 . . . . 2 2 Power 1 | . . . . 1 . . . . . . Propulsion 4 | . . . . 2 . . . . 2 . Utility 8 | . . . . 6 . . . . . 2 Weapon 1 | . . . . 1 . . . . . . Parts Attached 155 | 6 4 3 5 47 12 1 3 1 28 45 Power 22 | 1 . . . 7 1 . . . 5 8 Engine 3 | 1 . . . 2 . . . . . . Core 9 | . . . . 5 1 . . . 3 . Reactor 10 | . . . . . . . . . 2 8 Propulsion 39 | 2 . 1 . 8 3 1 . . 8 16 Treads 12 | 2 . 1 . . . . . . 2 7 Leg 26 | . . . . 8 3 1 . . 6 8 Wheel 1 | . . . . . . . . . . 1 Hover . | . . . . . . . . . . . Flight . | . . . . . . . . . . . Utility 51 | 1 1 1 3 18 4 . 3 . 9 11 Device 25 | . . . . 10 2 . 1 . 7 5 Storage 5 | 1 1 . 1 1 . . 1 . . . Processor 6 | . . . . 2 . . . . . 4 Hackware . | . . . . . . . . . . . Protection 15 | . . 1 2 5 2 . 1 . 2 2 Artifact . | . . . . . . . . . . . Weapon 43 | 2 3 1 2 14 4 . . 1 6 10 Energy Gun 10 | 1 . . . 3 . . . . 2 4 Energy Cannon 4 | . . . . 3 . . . . . 1 Ballistic Gun 27 | 1 3 1 1 8 3 . . 1 4 5 Ballistic Cannon . | . . . . . . . . . . . Launcher 1 | . . . . . 1 . . . . . Special Weapon 1 | . . . 1 . . . . . . . Impact Weapon . | . . . . . . . . . . . Slashing Weapon . | . . . . . . . . . . . Piercing Weapon . | . . . . . . . . . . . Special Melee Weapon . | . . . . . . . . . . . Unidentified Prototypes 12 | . . . 1 2 1 . 4 . 1 3 Parts Lost 83 | . . 2 . 16 10 2 . . 9 44 Power 10 | . . . . 2 1 . . . 1 6 Propulsion 26 | . . 1 . 2 2 1 . . 4 16 Utility 27 | . . . . 7 5 1 . . 3 11 Weapon 20 | . . 1 . 5 2 . . . 1 11 Highest Loss Streak 12 | . . 2 . 4 4 2 . . 2 12 To Critical Strikes . | . . . . . . . . . . . Average Backups 11 | 3 8 10 13 11 11 10 10 10 10 10 Power . | . 1 1 . . . . . . . . Propulsion 2 | 2 3 3 4 2 2 1 1 1 2 2 Utility 2 | . 1 2 2 4 3 4 3 2 2 2 Weapon 5 | . 3 3 7 4 5 5 5 6 5 4 Tool/Special . | . . . . . . . . . . . Unused Backups 29 | . 4 . 11 9 . . 1 . 1 3 Power 4 | . 1 . 1 1 . . . . . 1 Propulsion 12 | . 2 . 3 6 . . . . 1 . Utility 3 | . . . 2 . . . . . . 1 Weapon 9 | . 1 . 5 2 . . 1 . . . Tool/Special 1 | . . . . . . . . . . 1 Average Slot Usage (%) 89 | . 85 95 90 92 87 80 76 100 93 86 Engine 4 | . 14 14 14 4 . . . . . . Core 4 | . . . . 4 9 11 11 11 7 . Reactor 1 | . . . . . . . . . 1 7 Treads 8 | . 28 28 28 . . . . . 2 5 Leg 16 | . . . . 22 22 23 23 23 23 19 Device 13 | . . . . 19 18 9 12 17 21 21 Storage 9 | . 14 14 14 5 5 5 8 11 10 9 Processor 3 | . . . . 4 5 5 5 5 4 3 Protection 7 | . . 10 14 9 5 5 8 11 3 1 Energy Gun 2 | . 3 . . 3 3 . 2 . 3 3 Ballistic Gun 12 | . 24 28 10 11 8 11 . 14 11 8 Special Weapon 1 | . . . 8 . . . . . . . Peak Build Rating 140 | 6 10 10 23 94 97 82 107 108 121 140 Average Rating 71 | 4 8 9 18 79 85 80 79 107 110 115 On Entrance 57 | . 6 9 10 23 94 82 76 107 108 120 Naked Turns . | . . . . . . . . . . . Heaviest Build 87 | 14 31 34 42 79 79 75 84 84 81 87 Greatest Support 181 | 40 40 40 40 71 80 80 80 80 135 181 Greatest Overweight (x) 1 | . . . 1 1 1 . 1 1 1 1 Average Overweight (x) . | . . . . . . . . . . . Largest Inventory Capacity 15 | 8 15 15 15 15 15 15 15 15 15 15 Average Capacity 14 | 7 12 15 15 15 15 15 15 15 15 15 Most Carried 15 | 6 11 11 15 15 15 15 15 15 15 15 Average Carried 13 | 3 8 10 14 14 13 14 14 14 14 13 Final Capacity 15 | 8 15 15 15 15 15 15 15 15 15 15 Final Carried 15 | 6 11 9 15 14 13 15 15 15 14 6 Class Distribution -------------------- 41% | Scavenger-Gunner 29% | Mutant 19% | Scavenger-Tank 6% | Tank Dominant Class ---------------- Mutant | -10/Materials Mutant | -10/Subcaves Mutant | -7/Scraptown Scavenger-Tank | -5/Factory Scavenger-Gunner | -5/Upper Caves Scavenger-Gunner | -5/Upper Caves Scavenger-Mutant | -5/Zhirov Scavenger-Gunner | -4/Proximity Caves Scavenger-Gunner | -4/Factory Scavenger-Gunner | -3/Research Resources | -11 -10 -10 -7 -5 -5 -5 -5 -4 -4 -3 ----------- Run | Yrd Mat Sub Scr Fac Upp Upp Zhi Pro Fac Res Matter Collected 5792 | 183 219 180 171 1761 464 252 70 30 847 1615 Remotely . | . . . . . . . . . . . Salvage Created 8337 | . 141 180 . 2615 1033 229 266 . 1279 2594 Parts 369 | . 14 11 . 133 28 10 2 . 66 105 Haulers Intercepted 3 | . 1 . . 1 . . . . . 1 Recyclers Shooed 5 | . . . . 1 . . . . 2 2 Parts Field Recycled . | . . . . . . . . . . . Retrieved Matter . | . . . . . . . . . . . Parts Self-Destructed 38 | . . 2 . . 18 17 1 . . . Prevented 1 | . . . . . . 1 . . . . Kills | -11 -10 -10 -7 -5 -5 -5 -5 -4 -4 -3 ------- Run | Yrd Mat Sub Scr Fac Upp Upp Zhi Pro Fac Res Combat Hostiles Destroyed 136 | . 4 4 . 48 17 5 . . 20 38 Guns 108 | . 4 4 . 48 6 2 . . 18 26 Cannons 6 | . . . . . 6 . . . . . AOE 19 | . . . . . 5 3 . . 2 9 Classes Destroyed 19 | . 4 2 . 4 3 1 . . 1 4 Worker 1 | . . . . . . . . . 1 . Builder 7 | . . . . 1 . . . . 5 1 Hauler 3 | . 1 . . 1 . . . . . 1 Recycler 2 | . . . . . . . . . . 2 Minesweeper 1 | . . . . . . 1 . . . . Watcher 4 | . 1 . . 2 . . . . . 1 Swarmer 27 | . 3 . . 14 1 2 . . 1 6 Cutter 3 | . . . . . . . . . . 3 Grunt 41 | . 1 . . 14 7 1 . . 8 10 Brawler 5 | . . . . . 4 1 . . . . Duelist 1 | . . . . . 1 . . . . . Sentry 16 | . . 1 . 5 1 1 . . 3 5 Specialist 4 | . . . . 2 . . . . . 2 Hunter 10 | . . . . 2 2 . . . 4 2 Programmer 24 | . . . . 11 1 . . . 4 8 Striker 1 | . . . . . . . . . . 1 Executioner 1 | . . . . . . . . . . 1 Subdweller 3 | . . 3 . . . . . . . . Samaritan 1 | . . . . . 1 . . . . . Best Kill Streak 10 | . 3 2 . 7 5 5 . . 8 10 Combat Bots Only 9 | . 3 2 . 7 5 5 . . 6 9 Max Kills in Single Turn 3 | . 1 1 . 2 2 2 . . 2 3 Gunslinging 1 | . . . . . 1 . . . . 1 Exploded 3 | . . . . . 2 2 . . 1 3 Melee . | . . . . . . . . . . . Uniques/NPCs Destroyed . | . . . . . . . . . . . Combat | -11 -10 -10 -7 -5 -5 -5 -5 -4 -4 -3 -------- Run | Yrd Mat Sub Scr Fac Upp Upp Zhi Pro Fac Res Hostile Shots Fired 1156 | . 10 22 . 349 96 40 . . 165 474 Missed 342 | . 3 9 . 106 33 19 . . 56 116 Hits 814 | . 7 13 . 243 63 21 . . 109 358 Melee 17 | . . . . . 9 . . . . 8 Projectile 797 | . 7 13 . 243 54 21 . . 109 350 AOE 4 | . . . . 3 . . . . 1 . Critical Strikes 36 | . . . . 4 3 . . . 8 21 Part Disruptions 1 | . . . . . . . . . . 1 Damage Taken 16515 | . 76 464 . 4382 1362 252 . . 2159 7820 Core 2175 | . . 54 . 359 47 . . . 240 1475 Absorbed by Shields . | . . . . . . . . . . . Ignored by Resistances 324 | . . . . 230 . . . . 94 . Regen/Repaired (Parts) 152 | . . . . . . . . . . 152 Core Remaining (%) 79 | 100 . . 78 . . . . 59 79 . Volleys Fired 518 | . 16 15 . 160 64 19 25 20 69 130 Largest 3 | . 2 2 . 3 3 3 1 3 3 3 Hottest 238 | . 70 46 . 195 189 156 81 101 156 238 Shots Fired 1213 | . 32 30 . 429 99 40 24 28 187 344 Gun 1080 | . 32 30 . 409 53 24 24 13 183 312 Cannon 115 | . . . . 15 41 14 . 15 1 29 Launcher 13 | . . . . . 5 2 . . 3 3 Special 5 | . . . . 5 . . . . . . Kinetic 798 | . 28 30 . 303 33 24 . 13 145 222 Thermal 392 | . 4 . . 121 61 14 24 15 39 114 Explosive 13 | . . . . . 5 2 . . 3 3 Electromagnetic 5 | . . . . . . . . . . 5 Impact 5 | . . . . 5 . . . . . . Robot Hit Streak 48 | . 4 14 . 22 16 4 25 . 12 48 Robot Miss Streak 14 | . 3 2 . 5 3 2 . 12 14 4 Penetration Max 2 | . . . . 1 . 1 . . 1 2 Secondary Targets 23 | . . . . 12 2 . . . 4 5 Max Gunslinging Chain 1 | . . . . 1 1 . . . 1 1 Shots Hit Robots 766 | . 19 23 . 268 59 20 24 . 122 231 Core Hits 353 | . 8 8 . 119 40 13 5 . 65 95 Critical Kills 18 | . . . . 4 4 1 . . 3 6 Critical Parts Destroyed 20 | . . . . 4 1 . . . 10 5 Critical Strikes 61 | . 1 . . 21 5 1 3 . 16 14 Burn 22 | . 1 . . 13 . . 3 . 3 2 Meltdown 2 | . . . . . . . . . . 2 Destroy 37 | . . . . 8 5 1 . . 13 10 Melee Attacks . | . . . . . . . . . . . Impact . | . . . . . . . . . . . Slashing . | . . . . . . . . . . . Piercing . | . . . . . . . . . . . Sneak Attacks . | . . . . . . . . . . . Combat Hostiles . | . . . . . . . . . . . Follow-up Attacks . | . . . . . . . . . . . Damage Inflicted 24507 | . 327 350 . 6817 2660 898 681 . 4400 8374 Guns 19031 | . 326 350 . 6644 642 393 681 . 3525 6470 Cannons 1688 | . . . . . 1030 176 . . . 482 Explosions 3624 | . . . . 93 988 329 . . 854 1360 Melee . | . . . . . . . . . . . Ramming 110 | . 1 . . 26 . . . . 21 62 Kinetic 13001 | . 301 350 . 4570 374 393 . . 2667 4346 Thermal 7704 | . 25 . . 2074 1298 176 681 . 941 2509 Explosive 2742 | . . . . . 988 329 . . 771 654 Electromagnetic 190 | . . . . 93 . . . . . 97 Impact 54 | . . . . 54 . . . . . . Slashing . | . . . . . . . . . . . Piercing . | . . . . . . . . . . . Entropic 706 | . . . . . . . . . . 706 Highest Corruption 19 | . 4 4 . 12 18 18 18 18 7 19 Average Corruption 10 | . 3 4 . 7 15 18 18 18 5 7 Corruption Purged . | . . . . . . . . . . . Corruption Blocked . | . . . . . . . . . . . Effects 266 | . 4 7 . 67 55 29 12 31 24 37 Message Errors 68 | . 1 2 . 14 14 10 6 9 4 8 Matter Fused 63 | . 1 3 . 13 14 8 1 8 5 10 Heat Flow Errors 34 | . . 1 . 9 4 4 3 5 2 6 Energy Discharges 20 | . . . . 7 3 1 . 2 4 3 Parts Rejected 6 | . 1 . . 1 2 1 . . 1 . Parts Fused 2 | . . . . . 1 . . 1 . . Data Loss (minor) 31 | . . . . 8 9 2 1 2 3 6 Data Loss (major) 11 | . . 1 . 4 . 1 . 2 3 . Misfires 5 | . . . . . 2 . . . 1 2 Alerts 6 | . 1 . . 3 . . . 2 . . Misdirections 1 | . . . . . 1 . . . . . Weapon Failures 19 | . . . . 8 5 2 1 . 1 2 Overload Shots . | . . . . . . . . . . . Overflow Damage 252 | . . . . 19 . 11 . . 19 203 Projectiles 76 | . . . . 19 . . . . . 57 Explosions 148 | . . . . . . 11 . . 19 118 Melee 28 | . . . . . . . . . . 28 Knockbacks . | . . . . . . . . . . . Impact . | . . . . . . . . . . . Kinetic . | . . . . . . . . . . . Secondary . | . . . . . . . . . . . Self-Inflicted Damage 296 | . . . . . . . . . . 296 Shots 3 | . . . . . . . . . . 3 Rammed 3 | . 2 . . . . . . . . 1 Targets Rammed 10 | . 2 . . 4 . . . . 2 2 Kicked 7 | . . . . 4 . . . . 2 1 Crushed . | . . . . . . . . . . . Highest Temperature 789 | . 60 128 . 196 204 196 199 200 215 789 Average Temperature 97 | . 33 73 . 47 81 91 98 83 80 159 Received Heat Transfer 2191 | . 24 72 . 663 210 30 . . 261 931 Effects 18 | . . . . . . . . . . 18 Shutdowns 4 | . . . . . . . . . . 4 Energy Bleed 2 | . . . . . . . . . . 2 Interference 3 | . . . . . . . . . . 3 Matter Decay 2 | . . . . . . . . . . 2 Short Circuit 1 | . . . . . . . . . . 1 Damage (minor) 1 | . . . . . . . . . . 1 Damage (major) 2 | . . . . . . . . . . 2 Damage (core) 3 | . . . . . . . . . . 3 Siege Activations . | . . . . . . . . . . . Martial Activations . | . . . . . . . . . . . Shielding Activations . | . . . . . . . . . . . Robots Disrupted . | . . . . . . . . . . . Combat Hostiles . | . . . . . . . . . . . Robots Corrupted 2 | . . . . 1 . . . . . 1 Combat Hostiles 1 | . . . . . . . . . . 1 Parts Fried 5 | . . . . 2 . . . . . 3 Impact Corruptions 2 | . . . . 1 . . . . . 1 Robots Melted 2 | . . . . . . . . . . 2 Combat Hostiles 2 | . . . . . . . . . . 2 Parts Melted 23 | . 1 . . 10 3 . . . 1 8 Heat Transferred 11076 | . 148 . . 3885 1443 185 1110 . 1271 3034 Parts Sabotaged 2 | . . . . . . . . . . 2 Parts Stolen . | . . . . . . . . . . . Parts Stripped . | . . . . . . . . . . . Power Chain Reactions . | . . . . . . . . . . . Alert | -11 -10 -10 -7 -5 -5 -5 -5 -4 -4 -3 ------- Run | Yrd Mat Sub Scr Fac Upp Upp Zhi Pro Fac Res Maximum Alert Level 3 | . . . . 3 . . . . 2 3 Low Security (%) 40 | 100 100 . . 58 . . . . . . Level 1 17 | . . . . 13 . . . . 27 29 Level 2 36 | . . . . 19 . . . . 72 64 Level 3 4 | . . . . 8 . . . . . 5 Level 4 . | . . . . . . . . . . . Level 5 . | . . . . . . . . . . . High Security . | . . . . . . . . . . . Max Security . | . . . . . . . . . . . Peak Influence 789 | . 67 . . 789 . . . . 678 743 Initial 450 | . . . . . . . . . 450 351 Average 323 | . 21 . . 268 . . . . 490 495 Influence Increases 5028 | . 252 20 . 1539 380 242 15 . 1326 1254 Destroy 0b10 Robot/C 2760 | . 80 20 . 960 340 200 . . 400 760 Destroy 0b10 Robot/NC 115 | . 10 . . 20 10 5 15 . 30 25 Destroy Leader 534 | . 24 . . 216 30 10 . . 100 154 Allied During Kill 27 | . . . . . . 27 . . . . Successful Hack 103 | . 33 . . . . . . . 14 56 Select Force Hacks 50 | . . . . 50 . . . . . . Disable Machine 180 | . . . . 90 . . . . 75 15 Destroy Structure 404 | . . . . 68 . . . . 182 154 Advance Influence 450 | . . . . . . . . . 450 . Partial Spotted 15 | . . . . 15 . . . . . . Lose Combat Pursuer 390 | . 105 . . 120 . . . . 75 90 Influence Decreases 4369 | . 210 62 . 756 806 435 179 . 656 1265 Entered New Map 863 | . . 21 . . 290 69 164 . . 319 Time Decay 2486 | . 210 41 . 596 416 286 15 . 416 506 Search Patrol Dispatched 150 | . . . . . . . . . 150 . Lost Part 810 | . . . . 160 100 20 . . 90 440 Lost Ally 60 | . . . . . . 60 . . . . Squads Dispatched 32 | . 1 . . 18 . 1 . . 5 7 Investigation 6 | . . . . 5 . . . . . 1 Extermination 10 | . . . . 6 . . . . 2 2 Reinforcement 10 | . 1 . . 4 . . . . 2 3 Assault 2 | . . . . . . 1 . . 1 . Garrison 4 | . . . . 3 . . . . . 1 Intercept . | . . . . . . . . . . . Searches Triggered 1 | . . . . . . . . . 1 . Construction Impeded 2 | . . . . . . . . . 1 1 Haulers Reinforced 2 | . . . . 2 . . . . . . Active Scanning Responses . | . . . . . . . . . . . Cargo Convoy Interrupts 1 | . . . . . . . . . . 1 Stealth | -11 -10 -10 -7 -5 -5 -5 -5 -4 -4 -3 --------- Run | Yrd Mat Sub Scr Fac Upp Upp Zhi Pro Fac Res Distress Signals 10 | . 4 . . 2 . . . . 4 . Communications Jammed . | . . . . . . . . . . . Distress Signals . | . . . . . . . . . . . Times Spotted 203 | . 12 4 . 64 17 15 . 3 34 54 Peak Tracking Total 9 | . 4 2 . 7 9 5 . 1 6 8 Tactical Retreats 16 | . 5 . . 4 . . . . 3 4 Traps | -11 -10 -10 -7 -5 -5 -5 -5 -4 -4 -3 ------- Run | Yrd Mat Sub Scr Fac Upp Upp Zhi Pro Fac Res Traps Triggered 9 | . 2 5 . . . . . . 1 1 Indirectly . | . . . . . . . . . . . Trap Hack Attempts . | . . . . . . . . . . . Triggered . | . . . . . . . . . . . Disarmed . | . . . . . . . . . . . Reprogrammed . | . . . . . . . . . . . Reused . | . . . . . . . . . . . Traps Extracted . | . . . . . . . . . . . Installed 1 | . . . . . . . . . . 1 Triggered . | . . . . . . . . . . . Most Traps Carried 4 | . . . 2 2 2 4 4 4 4 4 Machines | -11 -10 -10 -7 -5 -5 -5 -5 -4 -4 -3 ---------- Run | Yrd Mat Sub Scr Fac Upp Upp Zhi Pro Fac Res Machines Disabled 13 | . . . . 6 . 1 . . 5 1 Max in Single Turn 4 | . . . . 2 . 1 . . 4 1 Garrison Access 2 | . . . . . . . . . 1 1 Machines Repaired . | . . . . . . . . . . . Machines Dismantled . | . . . . . . . . . . . Machines Sabotaged . | . . . . . . . . . . . Overloaded Fab Kills . | . . . . . . . . . . . Hacking | -11 -10 -10 -7 -5 -5 -5 -5 -4 -4 -3 --------- Run | Yrd Mat Sub Scr Fac Upp Upp Zhi Pro Fac Res Machines Accessed 34 | . 5 . 2 14 . . 4 . 3 6 Terminals 16 | . 5 . . 6 . . . . 1 4 Fabricators 3 | . . . . 3 . . . . . . Repair Stations 1 | . . . . . . . . . . 1 Recycling Units 5 | . . . . 4 . . . . 1 . Scanalyzers . | . . . . . . . . . . . Garrison Access 3 | . . . . 1 . . . . 1 1 Total Hacks 82 | . 18 . 9 21 . . 17 . 6 11 Successful 52 | . 10 . 9 7 . . 17 . 3 6 Failed 30 | . 8 . . 14 . . . . 3 5 Catastrophic 6 | . 1 . . 5 . . . . . . Database Lockouts . | . . . . . . . . . . . Manual 35 | . 20 . . 10 . . . . 2 3 Terminals 36 | . 18 . . 8 . . . . 2 8 Fabricators 4 | . . . . 4 . . . . . . Repair Stations 2 | . . . . . . . . . . 2 Recycling Units 9 | . . . . 6 . . . . 3 . Scanalyzers . | . . . . . . . . . . . Garrison Access 5 | . . . . 3 . . . . 1 1 Terminal Hacks 31 | . 2 . 9 . . . 17 . 1 2 Record 5 | . . . . . . . 5 . . . Part Schematic 4 | . . . . . . . 4 . . . Robot Analysis 14 | . 2 . 8 . . . 4 . . . Prototype ID Bank 4 | . . . . . . . 4 . . . Branch Access Points 1 | . . . . . . . . . . 1 Locate Traps 1 | . . . . . . . . . . 1 Zone Layout 1 | . . . . . . . . . 1 . Proto ID Catalog 1 | . . . 1 . . . . . . . Fabricator Hacks 2 | . . . . 2 . . . . . . Network Status 2 | . . . . 2 . . . . . . Repair Station Hacks 2 | . . . . . . . . . . 2 Scan Component 1 | . . . . . . . . . . 1 Repair 1 | . . . . . . . . . . 1 Recycling Unit Hacks 1 | . . . . . . . . . 1 . Report Inventory 1 | . . . . . . . . . 1 . Scanalyzer . | . . . . . . . . . . . Garrison Access Hacks 2 | . . . . . . . . . 1 1 Seal Access 2 | . . . . . . . . . 1 1 Unauthorized Hacks 14 | . 8 . . 5 . . . . . 1 Terminals 9 | . 8 . . . . . . . . 1 Botnet 4 | . 3 . . . . . . . . 1 Skim 5 | . 5 . . . . . . . . . Fabricators 1 | . . . . 1 . . . . . . Overload 1 | . . . . 1 . . . . . . Repair Stations . | . . . . . . . . . . . Recycling Units 4 | . . . . 4 . . . . . . Fedlink 4 | . . . . 4 . . . . . . Scanalyzers . | . . . . . . . . . . . Garrison Access . | . . . . . . . . . . . Data Cores Recovered . | . . . . . . . . . . . Used . | . . . . . . . . . . . Hacking Detections 20 | . 4 . . 9 . . . . 2 5 Full Trace Events . | . . . . . . . . . . . Feedback Events . | . . . . . . . . . . . Feedback Blocked . | . . . . . . . . . . . Robot Schematics Acquired . | . . . . . . . . . . . Robots Built . | . . . . . . . . . . . Authchips . | . . . . . . . . . . . Time . | . . . . . . . . . . . Total Robot Build Rating . | . . . . . . . . . . . Part Schematics Acquired 4 | . . . . . . . 4 . . . Parts Built . | . . . . . . . . . . . Authchips . | . . . . . . . . . . . Time . | . . . . . . . . . . . Total Part Build Rating . | . . . . . . . . . . . Parts Repaired 1 | . . . . . . . . . . 1 Time 44 | . . . . . . . . . . 44 Parts Recycled . | . . . . . . . . . . . Recycled Matter . | . . . . . . . . . . . Retrieved Matter . | . . . . . . . . . . . Retrieved Components . | . . . . . . . . . . . Parts Scanalyzed . | . . . . . . . . . . . Part Schematics Acquired . | . . . . . . . . . . . Parts Damaged . | . . . . . . . . . . . Bothacking | -11 -10 -10 -7 -5 -5 -5 -5 -4 -4 -3 ------------ Run | Yrd Mat Sub Scr Fac Upp Upp Zhi Pro Fac Res Used RIF Installer . | . . . . . . . . . . . Robots Hacked . | . . . . . . . . . . . Non-combat . | . . . . . . . . . . . Combat . | . . . . . . . . . . . Robot Hacks Applied . | . . . . . . . . . . . Relay Couplers Released 3 | . . . . . . . . . . 3 Programmers 3 | . . . . . . . . . . 3 Fabnet Peak Effective % . | . . . . . . . . . . . Robots Rewired 3 | . . . . . 2 1 . . . . Allies Hacked . | . . . . . . . . . . . Hacks Repelled . | . . . . . . . . . . . Allies | -11 -10 -10 -7 -5 -5 -5 -5 -4 -4 -3 -------- Run | Yrd Mat Sub Scr Fac Upp Upp Zhi Pro Fac Res Total Allies 3 | . . . . . 2 1 . . . . Largest Group 2 | . . . . . 2 2 . . . . Highest-Rated Group 59 | . . . . . 59 59 . . . . Highest-Rated Ally 30 | . . . . . 30 30 . . . . Total Orders . | . . . . . . . . . . . Ally Attacks 21 | . . . . . . 21 . . . . Total Damage 394 | . . . . . . 394 . . . . Kills 5 | . . . . . . 5 . . . . Allies Corrupted . | . . . . . . . . . . . Allies Melted . | . . . . . . . . . . . Intel | -11 -10 -10 -7 -5 -5 -5 -5 -4 -4 -3 ------- Run | Yrd Mat Sub Scr Fac Upp Upp Zhi Pro Fac Res Active Infowar (turns) . | . . . . . . . . . . . Robot Analysis Total 14 | . 2 . 8 . . . 4 . . . Derelict Logs Recovered 4 | . . . . . 2 1 . 1 . . Drone Launches . | . . . . . . . . . . . Drone Recoveries . | . . . . . . . . . . . Exploration | -11 -10 -10 -7 -5 -5 -5 -5 -4 -4 -3 ------------- Run | Yrd Mat Sub Scr Fac Upp Upp Zhi Pro Fac Res Turns Passed 10012 | 79 841 318 1578 2249 1017 626 278 650 1010 1366 Spaces Moved 5454 | 43 476 158 769 1088 643 453 155 428 545 696 Core 3 | 3 . . . . . . . . . . Treads 1565 | 40 476 158 769 . . . . . . 122 Legs 3886 | . . . . 1088 643 453 155 428 545 574 Wheels . | . . . . . . . . . . . Hover . | . . . . . . . . . . . Flight . | . . . . . . . . . . . Fastest Speed 50 | 50 160 160 160 120 120 120 120 120 120 120 Average Speed 146 | 152 160 160 201 151 129 120 121 134 129 126 Slowest Speed 240 | 160 160 160 240 190 190 120 190 190 190 190 Overloaded Moves . | . . . . . . . . . . . Propulsion Burnouts . | . . . . . . . . . . . Robots Hopped . | . . . . . . . . . . . Potential Cave-ins 5 | . . . . 5 . . . . . . Cave-ins Triggered . | . . . . . . . . . . . Exploration Rate (%) 41 | 5 72 16 61 31 59 65 60 56 14 17 Regions Visited 10 Branch Regions 6 Pre-discovered Areas 8 | . 2 . . 1 . 1 3 1 . . Known Exits Taken 1 | . 1 . . . . . . . . . Unknown Exits Taken 9 | 1 . 1 1 1 1 1 1 1 1 . Scrap Searched 12 | . . . 7 . 1 2 . 2 . . Spaces Dug 41 | . . . . 10 . 4 . 15 . 12 Terrain Destroyed 353 | . . . . 33 57 31 . 22 103 107 Melee . | . . . . . . . . . . . Projectile 150 | . . . . 31 24 13 . 22 33 27 AOE 197 | . . . . . 33 18 . . 69 77 Terrain Rammed . | . . . . . . . . . . . Walls Destroyed . | . . . . . . . . . . . Machines Disabled . | . . . . . . . . . . . Actions | -11 -10 -10 -7 -5 -5 -5 -5 -4 -4 -3 --------- Run | Yrd Mat Sub Scr Fac Upp Upp Zhi Pro Fac Res Total 6797 | 54 527 191 814 1472 768 507 232 486 752 994 Wait 355 | . 7 16 . 90 32 11 37 30 66 66 Move 5444 | 42 475 157 768 1087 642 452 154 427 544 696 Hop . | . . . . . . . . . . . Pick Up 107 | 6 11 . 21 31 3 4 3 3 9 16 Fast Attach 81 | 6 3 1 . 16 7 1 6 . 18 23 Attach 62 | . . 2 1 26 4 1 2 . 5 21 Detach 18 | . 1 . . 7 1 . . . 3 6 Swap 69 | . 2 . 4 22 6 2 1 3 13 16 Drop 108 | . 10 . 20 29 1 1 4 3 23 17 Fire 518 | . 16 15 . 160 64 19 25 20 69 130 Melee . | . . . . . . . . . . . Ram . | . . . . . . . . . . . Kick 7 | . . . . 4 . . . . 2 1 Crush 3 | . 2 . . . . . . . . 1 Escape Stasis . | . . . . . . . . . . . Rewire 24 | . . . . . 8 16 . . . . Trap 1 | . . . . . . . . . . 1 Miscellaneous . | . . . . . . . . . . . Route ------- -11/Scrapyard -10/Materials (discovered 5 exits: *Mat x3 / [*Min] / *Sub) -10/Subcaves -7/Scraptown -5/Factory -5/Upper Caves -5/Upper Caves -5/Zhirov -4/Proximity Caves -4/Factory (discovered 2 exits: *Res x2) -3/Research (discovered 3 exits: Arm / Qua x2) History --------- Turn | Location | Event 26 | -11/Scrapyard | Discovered new exit (range 15) 80 | -11/Scrapyard | Entered Materials 301 | -10/Materials | Discovered new exit (range 12) 312 | -10/Materials | Build established: Mutant 494 | -10/Materials | Discovered new exit (range 13) 700 | -10/Materials | Discovered new exit (range 7) 709 | -10/Materials | Identified exit to Materials 709 | -10/Materials | Identified exit to Subcaves 745 | -10/Materials | Learned location of 2 exits from Mines 788 | -10/Materials | Learned location of 1 exit from Recycling 797 | -10/Materials | Learned location of Recycling (-7) 829 | -10/Materials | Learned 2 Mines zone layouts 860 | -10/Materials | Learned 4 Recycling zone layouts 921 | -10/Materials | Entered Subcaves 922 | -10/Subcaves | Approached by a straggling Scientist 1075 | -10/Subcaves | Ambushed by Subdweller buried in earth 1218 | -10/Subcaves | Scientist uncovered a shortcut to Scraptown 1239 | -10/Subcaves | Entered Scraptown 1239 | -7/Scraptown | System corruption cleaned by C-Scrubber 1433 | -7/Scraptown | Visited TADAMA 1455 | -7/Scraptown | Visited Assassins FH 1460 | -7/Scraptown | Heard Great Nut preacher, LISTEN AND RECITE! 1471 | -7/Scraptown | Visited Bundlers 1597 | -7/Scraptown | Visited The Evicted 1618 | -7/Scraptown | Visited Symbiants 1648 | -7/Scraptown | Visited CPS Storage 1720 | -7/Scraptown | Visited Shadow of the Wyrm 1767 | -7/Scraptown | Visited UFD Registry 1767 | -7/Scraptown | Registered with UFD as "Kinetilauncher" 1802 | -7/Scraptown | Visited Derelict Rescue Squad 1831 | -7/Scraptown | Visited Junk Cannon Lab 1840 | -7/Scraptown | Found Prototype Special Weapon 1856 | -7/Scraptown | Identified Junk Cannon 1912 | -7/Scraptown | Visited Science Testing Area 2179 | -7/Scraptown | Visited Abandonware Association 2211 | -7/Scraptown | Visited Scrapoid Pod Storage 2242 | -7/Scraptown | Visited Supply Room 2324 | -7/Scraptown | Visited Analyses Database 2382 | -7/Scraptown | Visited Science Guys 2493 | -7/Scraptown | Visited Research Penetration Think Tank 2670 | -7/Scraptown | Met Optimus 2670 | -7/Scraptown | Accepted into 0bPrime 2810 | -7/Scraptown | Discovered new exit (range 3) 2817 | -7/Scraptown | Entered Factory 2817 | -5/Factory | Evolved 10 slots: Power x1, Propulsion x2, Utility x6, Weapon x1 3120 | -5/Factory | Build established: Tank 3121 | -5/Factory | Loaded intel: 8 recycling unit locations 3849 | -5/Factory | Learned location of Protoforge (-2) 4075 | -5/Factory | Build established: Scavenger-Tank 4304 | -5/Factory | Spotted B-75 Beast 4442 | -5/Factory | System corruption reached 10% 4660 | -5/Factory | Lost 4 parts (1n2u1w) 4661 | -5/Factory | Destroyed 7 combat bots 4808 | -5/Factory | Build established: Scavenger-Gunner 4816 | -5/Factory | Garrison activated, responded to threat 5033 | -5/Factory | Discovered new exit (range 4) 5066 | -5/Factory | Entered Upper Caves 5213 | -5/Upper Caves | Learned Factory stockpile data 5404 | -5/Upper Caves | Lost 4 parts (1p2n1u) 5422 | -5/Upper Caves | Attracted the attention of an 0b10 outpost 5570 | -5/Upper Caves | Lost 4 parts (3u1w) 5865 | -5/Upper Caves | Discovered new exit (range 5) 6083 | -5/Upper Caves | Entered another Upper Caves area 6083 | -5/Upper Caves | Accompanied by 2 allies 6339 | -5/Upper Caves | Learned location of Armory (-3) 6518 | -5/Upper Caves | Attracted the attention of an 0b10 checkpoint 6558 | -5/Upper Caves | Attracted the attention of an 0b10 outpost 6642 | -5/Upper Caves | Spotted B-75 Beast 6699 | -5/Upper Caves | Discovered new exit (range 8) 6709 | -5/Upper Caves | Entered Zhirov 6711 | -5/Zhirov | Discovered new exit (range 3) 6733 | -5/Zhirov | Met Zhirov 6759 | -5/Zhirov | Learned location of Quarantine (-3) 6759 | -5/Zhirov | Learned location of Testing (-2) 6759 | -5/Zhirov | Learned location of Command (-1) 6766 | -5/Zhirov | Zhirov requested help retrieving the SGEMP Prototype 6785 | -5/Zhirov | Found Alien Artifact 6785 | -5/Zhirov | Identified Integrated Reactor 6785 | -5/Zhirov | Installed Integrated Reactor, increased core energy generation (+10) 6801 | -5/Zhirov | Found Alien Artifact 6987 | -5/Zhirov | Entered Proximity Caves 7078 | -4/Proximity Caves | Spotter reported a threat 7451 | -4/Proximity Caves | Spotter reported a threat 7487 | -4/Proximity Caves | Spotter reported a threat 7595 | -4/Proximity Caves | Discovered new exit (range 11) 7637 | -4/Proximity Caves | Entered Factory 7637 | -4/Factory | Evolved 2 slots: Propulsion x2 8074 | -4/Factory | Discovered new exit (range 14) 8137 | -4/Factory | Search patrols dispatched 8637 | -4/Factory | First assault squad dispatched 8639 | -4/Factory | Discovered new exit (range 8) 8647 | -4/Factory | Entered Research 8647 | -3/Research | Evolved 2 slots: Utility x2 8648 | -3/Research | Identified exit to Armory 8733 | -3/Research | Repaired Imp. KE Penetrator 8832 | -3/Research | Build established: Scavenger-Tank 8900 | -3/Research | Found Prototype Device 8900 | -3/Research | Identified Exp. Shield Generator 9083 | -3/Research | Garrison activated, responded to threat 9114 | -3/Research | Lost 7 parts (1p2n3u1w) 9177 | -3/Research | Lost 3 parts (1p2n) 9203 | -3/Research | Found Prototype Processor 9203 | -3/Research | Identified Exp. Signal Interpreter 9217 | -3/Research | Lost 4 parts (1p1n2w) 9343 | -3/Research | Build established: Scavenger-Gunner 9676 | -3/Research | Lost 3 parts (1p1n1u) 9823 | -3/Research | Identified exit to Quarantine 9847 | -3/Research | Cargo convoy interrupted 9868 | -3/Research | System corruption reached 10% 9876 | -3/Research | Spotted Striker 9876 | -3/Research | Spotted Executioner 9904 | -3/Research | Destroyed Striker 9925 | -3/Research | Lost 12 parts (1p4n3u4w) 9937 | -3/Research | Core integrity fell below 50% 9941 | -3/Research | Destroyed 9 combat bots 9963 | -3/Research | Destroyed Executioner 9972 | -3/Research | Core integrity fell below 20% 9987 | -3/Research | Lost 3 parts (2n1u) 10014 | -3/Research | Core destroyed Last Messages --------------- 09995_ K-01 Serf collects debris. 09995_ Imp. Heavy Siege Treads destroyed. 09995_ R-10 Processor collects Relay Coupler [Swarmer]. 09996_ Centrium Light Armor Plating destroyed. 09996_ Gamma Rifle destroyed. 09997_ 5 WYQTQ5DJFU BL/KWHR: KYWQ#LMWYIR0 09999_ Critical hit (Burn: +50). 10001_ Gamma Rifle destroyed. 10001_ R-10 Processor collects Corrupted Field Laser. 10002_ Railgun destroyed. 10003_ K-01 Serf collects debris. 10007_ Overheating: System interference. 10007_ Adv. Targeting Computer temporarily disabled. 10007_ P-80 Master suffers critical hit (Destroy). 10007_ Destroyed Imp. Antigrav System. 10009_ K-01 Serf collects debris. 10010_ Mic. Antimatter Reactor destroyed. 10011_ Adv. Targeting Computer destroyed. 10013_ Adv. Energy Well destroyed. 10014_ Overheating: Core damaged (-221). Map ----- +----------------------------------------------------+ | ?????????????????????????????????????????????????? | | ?????????????????????????????????????????????????? | | ?????????????????????????????????????????????????? | | ?????????????????????????????????????????????????? | | ?????????????????????????????????????????????????? | | ?????????????????????????????????????????????????? | | ???????????????????????#####?????????????????????? | | ????????????????????????! ?????????????????????? | | ???????????????????????? ?????????????????????? | | ????????????????????????? ?????????????????????? | | ????????????????????????? ????###??????????????? | | ?????????????????????????? ###? ???????????????? | | ?????????????????????????? # ## #???????????????? | | ??????????????????????#####""### ##??????????????? | | ??????????????????????? H ##?#????????????? | | ???????????????????????##"""#%###"# ?????????????? | | ???????????????????????# # # #?????????????? | | ????????????????????####""" # # #?????????????? | | ????????????????????# " # # #? ???????????? | | ????????????????????# ### # ## ???????????? | | ????????????????????# " % # # ???????????? | | ????????????????????# k ###+####### #??????????? | | ????????????????????# % #% % # # #??????????? | | ???????????????????####/### % # ## #??????????? | | ??????????????????## ggpg ##?? #??????##### | | ??????????????????## @# #??# #?????# | | ??????????????????## # #??# #?????# | | ??????????????????## u# #??# #?????# | | ??????????????????## R#####+##??# #?????# | | ??????????????????## #???# ##### #?????# | | ??????????????????#######+###?# #?????# | | ????????????## #####"## #?# #?????# | | ????????????# " =### ####### | | ??????????? + "T + | | ????????????# ######+########## | | ????????????### "######! #??? ???????# | | ??????????????????????###+###??# #?????# | | ??????????????????????? ???# #?????##+### | | ??????????????????????# #?# #??????# #?? | | ??????????????????????# | #?# #??????# #?? | | ??????????????????????# #?# #??????# #?? | | ??????????????????????# #?########??????# ### | | ??????????????????????# #???????????????# ## | | ??????????????????????##+#####???????????????# ## | | ????????????????????????????????????????????## ## | | ?????????????????????# ################## # | | ????????????????? * ==%=%%=% + | | ?????????????????????# ###########!###### # | | ?????????????????????????????????????#!#?#####/### | | ?????????????????????????????????????# #? # ? | +----------------------------------------------------+ Best States ------------- Heat Dissipation 103 Coolant Potential 200 Energy Generation 49 Energy Capacity 1065 Matter Stores 300 Matter Capacity 300 Sight Range 16 Terrain Scan Density 10 Armor Coverage 600 Resistance: KI 20 Resistance: TH 20 Core Shielding 40 Weapon Cycling 30 Phase Shifting 10 Evasion (%) 73 Targeting Accuracy 16 Target Analysis 6 Armor Integrity Analysis 30 Recoil Reduction 6 Matter Filtering 50 Particle Charging 20 Item Schematics ----------------- Assault Drone Bay | -5/Zhirov | Free Exp. Heat Sink | -5/Zhirov | Free Exp. Optical Array | -5/Zhirov | Free Imp. Arc Thrower | -5/Zhirov | Free Robot Schematics ------------------ None Fabricated ------------ Nothing Repaired ---------- Imp. KE Penetrator | 15% | -3/Research Alien Tech Used ----------------- Integrated Reactor Achievements -------------- None Challenges ------------ None Game ------ Seed FluxTrackerWheel Manual? 0 Play Time 01:15:07 Cumulative 487.7 hours Start 2025.05.24 @ 19:59:29 End 2025.05.25 @ 10:55:26 Sessions 3 Manual Loads 0 Difficulty Rogue Special Mode None Game No. 336 Rogue 336 Adventurer 0 Explorer 0 Win Type - Total 44 Types 38/0/4/2/0/0/0/0/0/0 Lore% 81 Gallery% 79 Achievement% 72 Wizard Run 0 Options --------- Layout 0 ASCII 0 Keyboard 1 Movement Numpad Keybinds 0 Fullscreen 2 Font 24/Tamsyn Map View 76x50 Zoom Use 0% Tactical HUD 1 Map Filters NONE Filters NONE Steam 1 RUN: 553ae0b5-8d6a-4cf6-b317-4aaa376fb6a5